[Event "*** Titled Tuesday Blitz"]
[Site "Chess.com"]
[Date "2021.02.09"]
[Round "1"]
[White "krasavetc"]
[Black "Sanyura"]
[Result "1-0"]
[WhiteElo "2360"]
[BlackElo "2645"]
[TimeControl "180+1"]
[EndTime "10:06:53 PST"]
[Termination "krasavetc won by checkmate"]

1. Nf3 {[%clk 0:02:53]} 1... Nf6 {[%clk 0:02:59.7]} 2. d4 {[%clk 0:02:51.9]}
2... g6 {[%clk 0:02:51.2]} 3. e3 {[%clk 0:02:50.8]} 3... Bg7 {[%clk 0:02:50.9]}
4. c4 {[%clk 0:02:51]} 4... O-O {[%clk 0:02:51.6]} 5. Nc3 {[%clk 0:02:50.4]}
5... d6 {[%clk 0:02:52.5]} 6. Be2 {[%clk 0:02:49.9]} 6... Nbd7 {[%clk
0:02:53.4]} 7. O-O {[%clk 0:02:50]} 7... e5 {[%clk 0:02:51]} 8. e4 {[%clk
0:02:35.9]} 8... exd4 {[%clk 0:02:50]} 9. Nxd4 {[%clk 0:02:34.8]} 9... Nc5
{[%clk 0:02:50.5]} 10. f3 {[%clk 0:02:32.7]} 10... h5 {[%clk 0:02:41.2]} 11. Bg5
{[%clk 0:02:30.1]} 11... c6 {[%clk 0:02:37.3]} 12. h4 {[%clk 0:02:28.8]} 12...
Qb6 {[%clk 0:02:36.5]} 13. Be3 {[%clk 0:01:55.3]} 13... Qxb2 {[%clk 0:02:23.3]}
14. Na4 {[%clk 0:01:39.3]} 14... Qa3 {[%clk 0:02:04.4]} 15. Bf4 {[%clk
0:00:51.3]} 15... Qxa4 {[%clk 0:01:53.2]} 16. Bxd6 {[%clk 0:00:49.7]} 16... Rd8
{[%clk 0:01:04.5]} 17. Bxc5 {[%clk 0:00:46.3]} 17... Qa5 {[%clk 0:01:04.8]} 18.
Nb3 {[%clk 0:00:37.5]} 18... Rxd1 {[%clk 0:01:03.7]} 19. Nxa5 {[%clk 0:00:37.2]}
19... Rxf1+ {[%clk 0:01:03.9]} 20. Rxf1 {[%clk 0:00:32.3]} 20... b6 {[%clk
0:01:04.8]} 21. Nxc6 {[%clk 0:00:32.7]} 21... bxc5 {[%clk 0:01:04.9]} 22. Rd1
{[%clk 0:00:30.7]} 22... Be6 {[%clk 0:01:04.4]} 23. e5 {[%clk 0:00:27.2]} 23...
Nd7 {[%clk 0:01:04.3]} 24. f4 {[%clk 0:00:23.1]} 24... Nb6 {[%clk 0:01:04.4]}
25. Bf3 {[%clk 0:00:23.1]} 25... Kh7 {[%clk 0:00:59.5]} 26. Nd8 {[%clk
0:00:19.8]} 26... Rb8 {[%clk 0:00:56.8]} 27. Nxe6 {[%clk 0:00:15.1]} 27... fxe6
{[%clk 0:00:57.7]} 28. Rd6 {[%clk 0:00:15.2]} 28... Nxc4 {[%clk 0:00:50.4]} 29.
Rxe6 {[%clk 0:00:14.9]} 29... Nd2 {[%clk 0:00:46.2]} 30. Be2 {[%clk 0:00:11.8]}
30... Rc8 {[%clk 0:00:44.1]} 31. Bd3 {[%clk 0:00:11.4]} 31... c4 {[%clk
0:00:41.4]} 32. Bxg6+ {[%clk 0:00:11.8]} 32... Kh8 {[%clk 0:00:41.1]} 33. Bc2
{[%clk 0:00:12.7]} 33... c3 {[%clk 0:00:40.4]} 34. f5 {[%clk 0:00:12.8]} 34...
Nc4 {[%clk 0:00:39.8]} 35. f6 {[%clk 0:00:12]} 35... Bh6 {[%clk 0:00:39.2]} 36.
f7 {[%clk 0:00:11.5]} 36... Rf8 {[%clk 0:00:34.2]} 37. Rxh6+ {[%clk 0:00:11.2]}
37... Kg7 {[%clk 0:00:33.8]} 38. Rh7# {[%clk 0:00:12.1]} 1-0

[Event "*** Titled Tuesday Blitz"]
[Site "Chess.com"]
[Date "2021.02.09"]
[Round "1"]
[White "Mikasinski"]
[Black "Sibelephant"]
[Result "0-1"]
[WhiteElo "2467"]
[BlackElo "3031"]
[TimeControl "180+1"]
[EndTime "10:06:54 PST"]
[Termination "Sibelephant won by resignation"]

1. e4 {[%clk 0:02:55.4]} 1... c6 {[%clk 0:02:59.3]} 2. d4 {[%clk 0:02:54.7]}
2... d5 {[%clk 0:02:59.6]} 3. e5 {[%clk 0:02:53.9]} 3... Bf5 {[%clk 0:02:59.5]}
4. h4 {[%clk 0:02:52.4]} 4... h6 {[%clk 0:02:59.1]} 5. g4 {[%clk 0:02:51.2]}
5... Bd7 {[%clk 0:02:59.3]} 6. h5 {[%clk 0:02:50]} 6... e6 {[%clk 0:02:58.9]} 7.
c3 {[%clk 0:02:17.9]} 7... c5 {[%clk 0:02:58.4]} 8. Nf3 {[%clk 0:02:15.5]} 8...
Nc6 {[%clk 0:02:56.8]} 9. Bh3 {[%clk 0:01:34.4]} 9... Qc7 {[%clk 0:02:42.2]} 10.
Na3 {[%clk 0:01:22.3]} 10... a6 {[%clk 0:02:41.8]} 11. Nc2 {[%clk 0:01:22]}
11... O-O-O {[%clk 0:02:41.5]} 12. Be3 {[%clk 0:01:20.3]} 12... f6 {[%clk
0:02:36.1]} 13. Bf4 {[%clk 0:01:18.1]} 13... fxe5 {[%clk 0:02:26.1]} 14. Nxe5
{[%clk 0:01:15.2]} 14... Bd6 {[%clk 0:02:25.8]} 15. Qe2 {[%clk 0:01:11.2]} 15...
Nge7 {[%clk 0:02:09.3]} 16. Bg3 {[%clk 0:00:53.4]} 16... Bxe5 {[%clk 0:02:03.8]}
17. dxe5 {[%clk 0:00:52.9]} 17... d4 {[%clk 0:01:48.7]} 18. cxd4 {[%clk
0:00:45.6]} 18... Nxd4 {[%clk 0:01:45.5]} 19. Nxd4 {[%clk 0:00:44.3]} 19... cxd4
{[%clk 0:01:46.2]} 20. O-O {[%clk 0:00:44.9]} 20... Bb5 {[%clk 0:01:43.4]} 21.
Qe4 {[%clk 0:00:41.9]} 21... Bxf1 {[%clk 0:01:40.1]} 22. Bxf1 {[%clk 0:00:41.9]}
22... Kb8 {[%clk 0:01:39.5]} 23. Bd3 {[%clk 0:00:38]} 23... Rhf8 {[%clk
0:01:33.7]} 24. Bh4 {[%clk 0:00:37.2]} 24... Rd7 {[%clk 0:01:26.6]} 25. Rd1
{[%clk 0:00:28]} 25... Nd5 {[%clk 0:01:26.3]} 26. a3 {[%clk 0:00:23.1]} 26...
Nf4 {[%clk 0:01:22.2]} 27. Bf1 {[%clk 0:00:21.8]} 27... d3 {[%clk 0:01:15.1]}
28. Bg3 {[%clk 0:00:21.8]} 28... Qc6 {[%clk 0:01:11.2]} 29. Qxc6 {[%clk
0:00:18.8]} 29... bxc6 {[%clk 0:01:11.1]} 30. f3 {[%clk 0:00:13.8]} 30... c5
{[%clk 0:01:07.5]} 31. Bxf4 {[%clk 0:00:13.7]} 31... Rxf4 {[%clk 0:01:06.7]} 32.
Kf2 {[%clk 0:00:14.3]} 32... c4 {[%clk 0:01:05.9]} 33. Ke3 {[%clk 0:00:14.9]}
33... Rfd4 {[%clk 0:00:58]} 34. f4 {[%clk 0:00:14.3]} 34... R4d5 {[%clk
0:00:58.5]} 35. Bg2 {[%clk 0:00:13.9]} 35... Rc5 {[%clk 0:00:57.5]} 36. Rd2
{[%clk 0:00:14.6]} 36... Kc7 {[%clk 0:00:54.5]} 37. Be4 {[%clk 0:00:12.1]} 37...
Kb6 {[%clk 0:00:53.8]} 38. Rd1 {[%clk 0:00:12.5]} 38... Rb5 {[%clk 0:00:52.4]}
39. Rd2 {[%clk 0:00:11.8]} 39... Rc5 {[%clk 0:00:49.4]} 40. Rg2 {[%clk 0:00:12]}
40... Kb5 {[%clk 0:00:44.9]} 41. g5 {[%clk 0:00:11.5]} 41... hxg5 {[%clk
0:00:45.3]} 42. Rxg5 {[%clk 0:00:11.8]} 42... d2 {[%clk 0:00:45.6]} 0-1

[Event "*** Titled Tuesday Blitz"]
[Site "Chess.com"]
[Date "2021.02.09"]
[Round "1"]
[White "Pertinhez76"]
[Black "anon481216"]
[Result "0-1"]
[WhiteElo "1971"]
[BlackElo "2475"]
[TimeControl "180+1"]
[EndTime "10:06:55 PST"]
[Termination "anon481216 won by resignation"]

1. d4 {[%clk 0:02:56.4]} 1... Nf6 {[%clk 0:02:58.2]} 2. Nf3 {[%clk 0:02:54.5]}
2... d5 {[%clk 0:02:57.1]} 3. Bf4 {[%clk 0:02:53.4]} 3... c5 {[%clk 0:02:56.6]}
4. e3 {[%clk 0:02:52.5]} 4... Nc6 {[%clk 0:02:56.1]} 5. Nbd2 {[%clk 0:02:51.4]}
5... e6 {[%clk 0:02:55.4]} 6. c3 {[%clk 0:02:47.3]} 6... Bd6 {[%clk 0:02:54.5]}
7. Bg3 {[%clk 0:02:46.6]} 7... O-O {[%clk 0:02:49.5]} 8. Ne5 {[%clk 0:02:11.7]}
8... Qc7 {[%clk 0:02:41.3]} 9. f4 {[%clk 0:02:10]} 9... cxd4 {[%clk 0:02:36.6]}
10. exd4 {[%clk 0:02:08.7]} 10... Ne4 {[%clk 0:02:34.9]} 11. Bd3 {[%clk
0:02:07.2]} 11... f5 {[%clk 0:02:27.9]} 12. O-O {[%clk 0:01:57.2]} 12... Bd7
{[%clk 0:01:54.6]} 13. Rf3 {[%clk 0:01:47.1]} 13... Be8 {[%clk 0:01:53.8]} 14.
Re3 {[%clk 0:01:41.7]} 14... Nxe5 {[%clk 0:01:46.8]} 15. fxe5 {[%clk 0:01:32.7]}
15... Be7 {[%clk 0:01:47.4]} 16. Bxe4 {[%clk 0:01:25.5]} 16... fxe4 {[%clk
0:01:46.1]} 17. Qg4 {[%clk 0:01:21.6]} 17... Qd7 {[%clk 0:01:39.4]} 18. Rf1
{[%clk 0:01:18.1]} 18... Rxf1+ {[%clk 0:01:36.7]} 19. Nxf1 {[%clk 0:01:19]}
19... Bg6 {[%clk 0:01:37]} 20. Re2 {[%clk 0:01:13.1]} 20... Bf5 {[%clk
0:01:33.7]} 21. Qh5 {[%clk 0:01:11.8]} 21... Qb5 {[%clk 0:01:29.1]} 22. Ne3
{[%clk 0:01:08.3]} 22... g6 {[%clk 0:01:26.9]} 23. c4 {[%clk 0:01:03.3]} 23...
dxc4 {[%clk 0:01:22.8]} 24. Qh6 {[%clk 0:01:01.4]} 24... c3 {[%clk 0:01:19.1]}
25. Nxf5 {[%clk 0:01:00.5]} 25... exf5 {[%clk 0:01:17.8]} 26. Rf2 {[%clk
0:00:53.1]} 26... cxb2 {[%clk 0:01:16.6]} 27. Rxb2 {[%clk 0:00:40.9]} 27... Qxb2
{[%clk 0:01:16.1]} 28. h4 {[%clk 0:00:39.8]} 28... Qxd4+ {[%clk 0:01:15.7]} 29.
Kh2 {[%clk 0:00:38.4]} 29... Bf8 {[%clk 0:01:10.1]} 30. Qg5 {[%clk 0:00:35.7]}
30... Qd8 {[%clk 0:01:03.6]} 31. Qe3 {[%clk 0:00:29.7]} 31... Qd7 {[%clk
0:01:03]} 32. Qb3+ {[%clk 0:00:28.1]} 32... Kh8 {[%clk 0:00:59.2]} 33. e6 {[%clk
0:00:27.2]} 33... Qe7 {[%clk 0:00:58.8]} 34. h5 {[%clk 0:00:24.2]} 34... gxh5
{[%clk 0:00:56.3]} 35. Be5+ {[%clk 0:00:19.6]} 35... Bg7 {[%clk 0:00:56.2]} 36.
Qc3 {[%clk 0:00:18.9]} 36... Rg8 {[%clk 0:00:54.1]} 37. Qd4 {[%clk 0:00:15.9]}
37... Qxe6 {[%clk 0:00:45.5]} 38. Bxg7+ {[%clk 0:00:12.7]} 38... Rxg7 {[%clk
0:00:45.7]} 39. Qd8+ {[%clk 0:00:10.5]} 39... Qg8 {[%clk 0:00:46.1]} 40. Qxg8+
{[%clk 0:00:08.6]} 0-1

[Event "*** Titled Tuesday Blitz"]
[Site "Chess.com"]
[Date "2021.02.09"]
[Round "1"]
[White "Eternauta2400"]
[Black "rogapa"]
[Result "0-1"]
[WhiteElo "2395"]
[BlackElo "2747"]
[TimeControl "180+1"]
[EndTime "10:06:56 PST"]
[Termination "rogapa won on time"]

1. e4 {[%clk 0:02:56.5]} 1... c5 {[%clk 0:02:59]} 2. Nf3 {[%clk 0:02:56.4]} 2...
d6 {[%clk 0:02:58.4]} 3. d4 {[%clk 0:02:56.5]} 3... cxd4 {[%clk 0:02:59.3]} 4.
Nxd4 {[%clk 0:02:57]} 4... Nf6 {[%clk 0:02:59]} 5. Nc3 {[%clk 0:02:57]} 5... a6
{[%clk 0:02:59.6]} 6. Bc4 {[%clk 0:02:54.7]} 6... e6 {[%clk 0:02:59.1]} 7. a4
{[%clk 0:02:52.4]} 7... Be7 {[%clk 0:02:46.1]} 8. O-O {[%clk 0:02:51.7]} 8...
Nc6 {[%clk 0:02:43.6]} 9. f3 {[%clk 0:02:37.4]} 9... O-O {[%clk 0:02:40.4]} 10.
Be3 {[%clk 0:02:35.4]} 10... Bd7 {[%clk 0:02:40.3]} 11. Qe2 {[%clk 0:02:16.8]}
11... Ne5 {[%clk 0:02:34.8]} 12. Bb3 {[%clk 0:02:06.3]} 12... Rc8 {[%clk
0:02:28.7]} 13. Rfd1 {[%clk 0:02:06.5]} 13... Qc7 {[%clk 0:02:27.7]} 14. a5
{[%clk 0:01:48.8]} 14... Nc4 {[%clk 0:02:19.1]} 15. Bxc4 {[%clk 0:01:41.6]}
15... Qxc4 {[%clk 0:02:20]} 16. Qxc4 {[%clk 0:01:41.9]} 16... Rxc4 {[%clk
0:02:20.9]} 17. Nce2 {[%clk 0:01:32.8]} 17... e5 {[%clk 0:02:16.6]} 18. Nf5
{[%clk 0:01:28.4]} 18... Bxf5 {[%clk 0:02:14.1]} 19. exf5 {[%clk 0:01:29.3]}
19... Rxc2 {[%clk 0:02:13.4]} 20. Nc3 {[%clk 0:01:24]} 20... h6 {[%clk
0:01:59.1]} 21. Rac1 {[%clk 0:01:19.7]} 21... Rxb2 {[%clk 0:01:52.7]} 22. Nd5
{[%clk 0:01:16.4]} 22... Nxd5 {[%clk 0:01:48]} 23. Rxd5 {[%clk 0:01:17.3]} 23...
Rb3 {[%clk 0:01:28.2]} 24. Bb6 {[%clk 0:01:11.4]} 24... Bg5 {[%clk 0:01:23]} 25.
Rc7 {[%clk 0:00:58.7]} 25... Re8 {[%clk 0:01:19.7]} 26. Rc4 {[%clk 0:00:25.2]}
26... Rb1+ {[%clk 0:01:01.7]} 27. Kf2 {[%clk 0:00:24.1]} 27... Rb2+ {[%clk
0:01:02.6]} 28. Kg3 {[%clk 0:00:19.8]} 28... Rb3 {[%clk 0:01:00.4]} 29. Kf2
{[%clk 0:00:17.2]} 29... Bf4 {[%clk 0:00:53.9]} 30. g3 {[%clk 0:00:12.8]} 30...
Rb2+ {[%clk 0:00:52.3]} 31. Kf1 {[%clk 0:00:07.6]} 31... Bg5 {[%clk 0:00:46.5]}
32. Rxd6 {[%clk 0:00:06]} 32... Rxh2 {[%clk 0:00:41.2]} 33. f4 {[%clk
0:00:03.9]} 33... exf4 {[%clk 0:00:39.8]} 34. gxf4 {[%clk 0:00:04.8]} 34... Bf6
{[%clk 0:00:38.7]} 35. Rc7 {[%clk 0:00:02.6]} 35... Bh4 {[%clk 0:00:35.6]} 0-1

[Event "*** Titled Tuesday Blitz"]
[Site "Chess.com"]
[Date "2021.02.09"]
[Round "1"]
[White "Redzishchess"]
[Black "Heineccius"]
[Result "0-1"]
[WhiteElo "2269"]
[BlackElo "2573"]
[TimeControl "180+1"]
[EndTime "10:06:56 PST"]
[Termination "Heineccius won by resignation"]

1. e4 {[%clk 0:03:00]} 1... c5 {[%clk 0:02:57.5]} 2. Nf3 {[%clk 0:02:58.2]} 2...
e6 {[%clk 0:02:56.7]} 3. d4 {[%clk 0:02:58]} 3... cxd4 {[%clk 0:02:57.1]} 4.
Nxd4 {[%clk 0:02:58.9]} 4... Nc6 {[%clk 0:02:56.6]} 5. Nc3 {[%clk 0:02:59.4]}
5... Qc7 {[%clk 0:02:56.3]} 6. g3 {[%clk 0:02:59.9]} 6... a6 {[%clk 0:02:52.1]}
7. Bg2 {[%clk 0:02:59.9]} 7... Bc5 {[%clk 0:02:51.7]} 8. Be3 {[%clk 0:02:33.4]}
8... d6 {[%clk 0:02:47]} 9. O-O {[%clk 0:02:32.2]} 9... Nge7 {[%clk 0:02:43.2]}
10. Qd2 {[%clk 0:02:25.1]} 10... O-O {[%clk 0:02:36.4]} 11. Rad1 {[%clk
0:02:17.9]} 11... Ne5 {[%clk 0:02:32.7]} 12. Qe2 {[%clk 0:01:55.2]} 12... b5
{[%clk 0:02:30]} 13. f4 {[%clk 0:01:46.8]} 13... Nc4 {[%clk 0:02:28.5]} 14. e5
{[%clk 0:01:09.3]} 14... dxe5 {[%clk 0:01:57.4]} 15. Bxa8 {[%clk 0:00:57.6]}
15... exd4 {[%clk 0:01:55.9]} 16. Bxd4 {[%clk 0:00:34.4]} 16... Bxd4+ {[%clk
0:01:55.6]} 17. Rxd4 {[%clk 0:00:35.3]} 17... Qa7 {[%clk 0:01:54.8]} 18. Qf2
{[%clk 0:00:35]} 18... Qxa8 {[%clk 0:01:52.3]} 19. b3 {[%clk 0:00:35.5]} 19...
Nb6 {[%clk 0:01:44.2]} 20. Rfd1 {[%clk 0:00:34.6]} 20... Bb7 {[%clk 0:01:34.2]}
21. a4 {[%clk 0:00:34.8]} 21... Nf5 {[%clk 0:01:22.7]} 22. R4d2 {[%clk
0:00:26.7]} 22... Nd5 {[%clk 0:01:21.8]} 23. Nxd5 {[%clk 0:00:23.1]} 23... Bxd5
{[%clk 0:01:22.7]} 24. axb5 {[%clk 0:00:20.2]} 24... axb5 {[%clk 0:01:22.2]} 25.
Qc5 {[%clk 0:00:20.3]} 25... Qb7 {[%clk 0:00:58.6]} 26. c4 {[%clk 0:00:14.4]}
26... bxc4 {[%clk 0:00:58.8]} 27. bxc4 {[%clk 0:00:15.3]} 27... Rc8 {[%clk
0:00:58.8]} 28. Qb5 {[%clk 0:00:15.9]} 28... Qa7+ {[%clk 0:00:51.9]} 29. c5
{[%clk 0:00:15.6]} 29... Qxc5+ {[%clk 0:00:45.2]} 30. Qxc5 {[%clk 0:00:15.8]}
30... Rxc5 {[%clk 0:00:45.3]} 31. Rb2 {[%clk 0:00:16.3]} 31... h5 {[%clk
0:00:43.8]} 32. Kf2 {[%clk 0:00:16.1]} 32... Rc3 {[%clk 0:00:41.8]} 33. Ra1
{[%clk 0:00:15]} 33... Kh7 {[%clk 0:00:38.3]} 34. Ra7 {[%clk 0:00:13.7]} 34...
Kg6 {[%clk 0:00:37.7]} 35. Rd2 {[%clk 0:00:10.6]} 35... Ne3 {[%clk 0:00:34.7]}
36. Ra6 {[%clk 0:00:08.4]} 36... Ng4+ {[%clk 0:00:33.3]} 37. Kg1 {[%clk
0:00:08.7]} 37... Rc1+ {[%clk 0:00:31.8]} 0-1

[Event "*** Titled Tuesday Blitz"]
[Site "Chess.com"]
[Date "2021.02.09"]
[Round "1"]
[White "ega2006"]
[Black "frederiksvane"]
[Result "0-1"]
[WhiteElo "2396"]
[BlackElo "2751"]
[TimeControl "180+1"]
[EndTime "10:06:57 PST"]
[Termination "frederiksvane won on time"]

1. e4 {[%clk 0:02:59.8]} 1... c5 {[%clk 0:02:57.9]} 2. Nf3 {[%clk 0:02:57.3]}
2... g6 {[%clk 0:02:55.3]} 3. d4 {[%clk 0:02:56.8]} 3... cxd4 {[%clk 0:02:56.2]}
4. Qxd4 {[%clk 0:02:57.4]} 4... Nf6 {[%clk 0:02:54.4]} 5. Nc3 {[%clk 0:02:57.9]}
5... Nc6 {[%clk 0:02:54.6]} 6. Qa4 {[%clk 0:02:58.4]} 6... d6 {[%clk 0:02:55.1]}
7. e5 {[%clk 0:02:58.8]} 7... dxe5 {[%clk 0:02:56]} 8. Nxe5 {[%clk 0:02:59.4]}
8... Bg7 {[%clk 0:02:56.3]} 9. Be2 {[%clk 0:02:52.7]} 9... O-O {[%clk 0:02:50]}
10. Nxc6 {[%clk 0:02:52.5]} 10... bxc6 {[%clk 0:02:50.8]} 11. Qxc6 {[%clk
0:02:50.6]} 11... Bd7 {[%clk 0:02:50.7]} 12. Qc4 {[%clk 0:02:34.9]} 12... Rc8
{[%clk 0:02:29.8]} 13. Qh4 {[%clk 0:02:34.1]} 13... Qb6 {[%clk 0:02:24.4]} 14.
O-O {[%clk 0:02:30.3]} 14... Bf5 {[%clk 0:02:19.6]} 15. Bd3 {[%clk 0:01:54.9]}
15... Bxd3 {[%clk 0:02:11.8]} 16. cxd3 {[%clk 0:01:55.8]} 16... Rfd8 {[%clk
0:02:11.9]} 17. Rd1 {[%clk 0:01:56.2]} 17... e6 {[%clk 0:01:52.9]} 18. Ne4
{[%clk 0:01:36.6]} 18... Nxe4 {[%clk 0:01:41.6]} 19. Qxe4 {[%clk 0:01:37.5]}
19... Rc2 {[%clk 0:01:38.5]} 20. Be3 {[%clk 0:01:18.6]} 20... Qxb2 {[%clk
0:01:34.9]} 21. Qa4 {[%clk 0:01:14.3]} 21... Bd4 {[%clk 0:00:55.1]} 22. Rdb1
{[%clk 0:00:18.9]} 22... Qc3 {[%clk 0:00:50.9]} 23. Rc1 {[%clk 0:00:19.1]} 23...
Rxc1+ {[%clk 0:00:46.9]} 24. Rxc1 {[%clk 0:00:18.6]} 24... Qb2 {[%clk
0:00:38.4]} 25. Rc2 {[%clk 0:00:05.5]} 25... Qb1+ {[%clk 0:00:26.1]} 26. Rc1
{[%clk 0:00:05.4]} 26... Qb2 {[%clk 0:00:17.4]} 27. Rc2 {[%clk 0:00:05.8]} 27...
Qb6 {[%clk 0:00:17.4]} 28. Bxd4 {[%clk 0:00:03.8]} 28... Qb1+ {[%clk 0:00:17.2]}
0-1

[Event "*** Titled Tuesday Blitz"]
[Site "Chess.com"]
[Date "2021.02.09"]
[Round "1"]
[White "OlifantCZ"]
[Black "louis198"]
[Result "0-1"]
[WhiteElo "2252"]
[BlackElo "2561"]
[TimeControl "180+1"]
[EndTime "10:06:58 PST"]
[Termination "louis198 won by resignation"]

1. c4 {[%clk 0:03:00.4]} 1... e6 {[%clk 0:03:00.6]} 2. g3 {[%clk 0:03:00]} 2...
d5 {[%clk 0:03:00.5]} 3. Bg2 {[%clk 0:03:00.4]} 3... g6 {[%clk 0:03:00.5]} 4.
Nf3 {[%clk 0:02:59.3]} 4... Bg7 {[%clk 0:03:00.8]} 5. O-O {[%clk 0:03:00]} 5...
Ne7 {[%clk 0:03:00.9]} 6. e3 {[%clk 0:02:58.6]} 6... O-O {[%clk 0:03:00.7]} 7.
Nc3 {[%clk 0:02:57.8]} 7... c5 {[%clk 0:02:55.4]} 8. cxd5 {[%clk 0:02:46.4]}
8... exd5 {[%clk 0:02:54.7]} 9. d4 {[%clk 0:02:46.8]} 9... c4 {[%clk 0:02:54.5]}
10. b3 {[%clk 0:02:46.3]} 10... cxb3 {[%clk 0:02:53.1]} 11. axb3 {[%clk
0:02:43.9]} 11... Nbc6 {[%clk 0:02:53.2]} 12. Ba3 {[%clk 0:02:42.8]} 12... Re8
{[%clk 0:02:52.4]} 13. Qe2 {[%clk 0:02:35]} 13... Nf5 {[%clk 0:02:51.5]} 14.
Rfc1 {[%clk 0:02:34.3]} 14... Ncxd4 {[%clk 0:02:46.6]} 15. Qd3 {[%clk
0:02:30.6]} 15... Nxb3 {[%clk 0:02:36.1]} 16. Nxd5 {[%clk 0:02:23.4]} 16... Nxc1
{[%clk 0:02:35.3]} 17. Rxc1 {[%clk 0:02:22.9]} 17... Be6 {[%clk 0:02:31.7]} 18.
e4 {[%clk 0:02:17.5]} 18... Bxd5 {[%clk 0:02:31.7]} 19. exd5 {[%clk 0:02:17.4]}
19... Nd6 {[%clk 0:02:29.2]} 20. Nd4 {[%clk 0:02:13.5]} 20... a6 {[%clk
0:02:07.1]} 21. Nb3 {[%clk 0:02:07.9]} 21... Nb5 {[%clk 0:02:04.9]} 22. Bc5
{[%clk 0:02:02]} 22... Rc8 {[%clk 0:02:04.2]} 23. d6 {[%clk 0:01:57.4]} 23...
Qd7 {[%clk 0:01:48.5]} 24. Bxb7 {[%clk 0:01:38.6]} 24... Rcd8 {[%clk 0:01:35.4]}
25. Bxa6 {[%clk 0:01:27.9]} 25... Nxd6 {[%clk 0:01:35.7]} 26. Rd1 {[%clk
0:01:28.1]} 26... Bf8 {[%clk 0:00:39.2]} 27. Bd4 {[%clk 0:01:12.2]} 27... Nf5
{[%clk 0:00:37.5]} 28. Bb5 {[%clk 0:01:11.6]} 28... Qd5 {[%clk 0:00:11.7]} 29.
Bxe8 {[%clk 0:01:10.6]} 29... Rxe8 {[%clk 0:00:12.3]} 30. Bb2 {[%clk 0:01:04.5]}
30... Re1+ {[%clk 0:00:10.4]} 0-1

[Event "*** Titled Tuesday Blitz"]
[Site "Chess.com"]
[Date "2021.02.09"]
[Round "1"]
[White "TheCairnTerrier"]
[Black "skoularikii"]
[Result "1-0"]
[WhiteElo "2171"]
[BlackElo "2489"]
[TimeControl "180+1"]
[EndTime "10:06:59 PST"]
[Termination "TheCairnTerrier won by checkmate"]

1. e4 {[%clk 0:03:00.9]} 1... e5 {[%clk 0:02:59.5]} 2. Nf3 {[%clk 0:03:00.8]}
2... Nc6 {[%clk 0:02:59.5]} 3. Bc4 {[%clk 0:03:01]} 3... Bc5 {[%clk 0:02:59.1]}
4. c3 {[%clk 0:03:00.4]} 4... Nf6 {[%clk 0:02:59.3]} 5. d3 {[%clk 0:03:00.5]}
5... O-O {[%clk 0:02:58.1]} 6. O-O {[%clk 0:03:00.1]} 6... d6 {[%clk 0:02:57.9]}
7. Bb3 {[%clk 0:02:56.1]} 7... a6 {[%clk 0:02:48.3]} 8. Re1 {[%clk 0:02:53.9]}
8... b5 {[%clk 0:02:42.5]} 9. a4 {[%clk 0:02:37.4]} 9... Bg4 {[%clk 0:02:38.6]}
10. Nbd2 {[%clk 0:02:30.1]} 10... Ne7 {[%clk 0:02:34.6]} 11. Nf1 {[%clk
0:02:01.8]} 11... Ng6 {[%clk 0:02:34.4]} 12. h3 {[%clk 0:01:55.2]} 12... Bd7
{[%clk 0:02:33.8]} 13. Ng3 {[%clk 0:01:42.7]} 13... h6 {[%clk 0:02:22.6]} 14.
Nh2 {[%clk 0:01:32]} 14... Bb6 {[%clk 0:02:21.3]} 15. Ng4 {[%clk 0:01:30.9]}
15... Nxg4 {[%clk 0:02:19.9]} 16. hxg4 {[%clk 0:01:31.8]} 16... Qh4 {[%clk
0:02:18.3]} 17. Be3 {[%clk 0:01:10.9]} 17... Bxg4 {[%clk 0:02:16.5]} 18. Qd2
{[%clk 0:01:03.8]} 18... Bxe3 {[%clk 0:01:52.1]} 19. Qxe3 {[%clk 0:01:04.7]}
19... c5 {[%clk 0:01:50.3]} 20. Bd5 {[%clk 0:01:02.5]} 20... Rab8 {[%clk
0:01:48.9]} 21. axb5 {[%clk 0:00:58.5]} 21... axb5 {[%clk 0:01:48.6]} 22. Ra7
{[%clk 0:00:58]} 22... Nf4 {[%clk 0:01:48.6]} 23. Ba2 {[%clk 0:00:50]} 23... c4
{[%clk 0:01:39.8]} 24. dxc4 {[%clk 0:00:45.8]} 24... bxc4 {[%clk 0:01:39.6]} 25.
Bxc4 {[%clk 0:00:45.4]} 25... Rxb2 {[%clk 0:01:38.5]} 26. Rea1 {[%clk
0:00:37.8]} 26... Be6 {[%clk 0:01:35]} 27. Bf1 {[%clk 0:00:32.9]} 27... g6
{[%clk 0:01:29.8]} 28. Ne2 {[%clk 0:00:27.4]} 28... Qg5 {[%clk 0:01:23.1]} 29.
Nxf4 {[%clk 0:00:26]} 29... exf4 {[%clk 0:01:22.9]} 30. Qd4 {[%clk 0:00:22.4]}
30... f3 {[%clk 0:01:13.2]} 31. g3 {[%clk 0:00:22.6]} 31... Rd2 {[%clk
0:01:09.7]} 32. Qb6 {[%clk 0:00:15.4]} 32... Qe5 {[%clk 0:01:04.1]} 33. Ra8
{[%clk 0:00:06.7]} 33... Qxc3 {[%clk 0:00:59.4]} 34. Rxf8+ {[%clk 0:00:06.4]}
34... Kxf8 {[%clk 0:00:59.3]} 35. Ra8+ {[%clk 0:00:03.6]} 35... Kg7 {[%clk
0:00:58.6]} 36. Qd8 {[%clk 0:00:03.4]} 36... f6 {[%clk 0:00:34]} 37. Qh8+ {[%clk
0:00:03]} 37... Kf7 {[%clk 0:00:34.5]} 38. Qf8# {[%clk 0:00:03]} 1-0